{"text_format":"1","workbook":"xlsx","n_sheets":3,"sheets":["Sheet1","Sheet2","Sheet3"],"not_rendered":{"charts":0,"images":0,"macros":1,"external_links":0,"defined_names":3,"comments":0,"pivot_tables":0},"unopened":[],"bounds":{"document_bytes":16777216,"sheet_cells":100000,"rows_first":2000,"rows_last":500,"rows_between":2000,"halvings":0,"cell_chars":16384,"cell_head_chars":4096},"cells_cut":0,"cells_raw":0,"read":"whole","date_system":"1900"}

{"sheet":"Sheet1","index":0,"n_rows":27,"n_cols":2,"rows_kept":27,"cut":false,"hidden":false,"merged":[]}
["Email Address","Check"]
["gary.youngman@gmail.com",{"$f":"MatchPatternUsingRegex(A2,\"[a-zA-Z0-9._%+-]+@gmail\\.com\")","v":true}]
["bernie_eves@gmail.com",{"$f":"MatchPatternUsingRegex(A3,\"[a-zA-Z0-9._%+-]+@gmail\\.com\")","v":true}]
["james_didn't120@outlook.com",{"$f":"MatchPatternUsingRegex(A4,\"[a-zA-Z0-9._%+-]+@gmail\\.com\")","v":false}]
["josan_acuname@gmail.com",{"$f":"MatchPatternUsingRegex(A5,\"[a-zA-Z0-9._%+-]+@gmail\\.com\")","v":true}]
["dany_comebackaser@outlook.com",{"$f":"MatchPatternUsingRegex(A6,\"[a-zA-Z0-9._%+-]+@gmail\\.com\")","v":false}]
["rese_without_a_spoon@hotmail.com",{"$f":"MatchPatternUsingRegex(A7,\"[a-zA-Z0-9._%+-]+@gmail\\.com\")","v":false}]
["blake_dreary@gmail.com",{"$f":"MatchPatternUsingRegex(A8,\"[a-zA-Z0-9._%+-]+@gmail\\.com\")","v":true}]
["adelle_fromthisside@outlook.com",{"$f":"MatchPatternUsingRegex(A9,\"[a-zA-Z0-9._%+-]+@gmail\\.com\")","v":false}]
["pariah_salin@gmail.com",{"$f":"MatchPatternUsingRegex(A10,\"[a-zA-Z0-9._%+-]+@gmail\\.com\")","v":true}]
["jonah_hill@gmail.com",{"$f":"MatchPatternUsingRegex(A11,\"[a-zA-Z0-9._%+-]+@gmail\\.com\")","v":true}]
["seriously_rowling@hotmail.com",{"$f":"MatchPatternUsingRegex(A12,\"[a-zA-Z0-9._%+-]+@gmail\\.com\")","v":false}]
["client_eastwood@ymail.com",{"$f":"MatchPatternUsingRegex(A13,\"[a-zA-Z0-9._%+-]+@gmail\\.com\")","v":false}]
["kanye_east877@gmail.com",{"$f":"MatchPatternUsingRegex(A14,\"[a-zA-Z0-9._%+-]+@gmail\\.com\")","v":true}]
["victor_iron@hotmail.com",{"$f":"MatchPatternUsingRegex(A15,\"[a-zA-Z0-9._%+-]+@gmail\\.com\")","v":false}]
["bread_grills@ymail.com",{"$f":"MatchPatternUsingRegex(A16,\"[a-zA-Z0-9._%+-]+@gmail\\.com\")","v":false}]
["jim_doesn'tcarrey@hotmail.com",{"$f":"MatchPatternUsingRegex(A17,\"[a-zA-Z0-9._%+-]+@gmail\\.com\")","v":false}]
["sunny_wilson@ymail.com",{"$f":"MatchPatternUsingRegex(A18,\"[a-zA-Z0-9._%+-]+@gmail\\.com\")","v":false}]
["elieja_wouldn't@outlook.com",{"$f":"MatchPatternUsingRegex(A19,\"[a-zA-Z0-9._%+-]+@gmail\\.com\")","v":false}]
["ellen_verygenerous@outlook.com",{"$f":"MatchPatternUsingRegex(A20,\"[a-zA-Z0-9._%+-]+@gmail\\.com\")","v":false}]
["drake_nolastname@ymail.com",{"$f":"MatchPatternUsingRegex(A21,\"[a-zA-Z0-9._%+-]+@gmail\\.com\")","v":false}]
["tom_throne@ymail.com",{"$f":"MatchPatternUsingRegex(A22,\"[a-zA-Z0-9._%+-]+@gmail\\.com\")","v":false}]
["daisy_vividy@outlook.com",{"$f":"MatchPatternUsingRegex(A23,\"[a-zA-Z0-9._%+-]+@gmail\\.com\")","v":false}]
["emily_sharp@gmail.com",{"$f":"MatchPatternUsingRegex(A24,\"[a-zA-Z0-9._%+-]+@gmail\\.com\")","v":true}]
["jooolia_stealerts@gmail.com",{"$f":"MatchPatternUsingRegex(A25,\"[a-zA-Z0-9._%+-]+@gmail\\.com\")","v":true}]
["mileey_virus@gmail.com",{"$f":"MatchPatternUsingRegex(A26,\"[a-zA-Z0-9._%+-]+@gmail\\.com\")","v":true}]
["nikki_maxaj@gmail.com",{"$f":"MatchPatternUsingRegex(A27,\"[a-zA-Z0-9._%+-]+@gmail\\.com\")","v":true}]

{"sheet":"Sheet2","index":1,"n_rows":27,"n_cols":2,"rows_kept":27,"cut":false,"hidden":false,"merged":[]}
["Data","Cleaned Data"]
["Gary!! Youngman",{"$f":"ReplaceUsingRegex(A2,\"[^a-zA-Z\\s]\", \"\")","v":"Gary Youngman"}]
["Bernie_ Eves",{"$f":"ReplaceUsingRegex(A3,\"[^a-zA-Z\\s]\", \"\")","v":"Bernie Eves"}]
["James Didn'T@@",{"$f":"ReplaceUsingRegex(A4,\"[^a-zA-Z\\s]\", \"\")","v":"James DidnT"}]
["Josan Acuna+me",{"$f":"ReplaceUsingRegex(A5,\"[^a-zA-Z\\s]\", \"\")","v":"Josan Acuname"}]
["Dany Comebackaser__",{"$f":"ReplaceUsingRegex(A6,\"[^a-zA-Z\\s]\", \"\")","v":"Dany Comebackaser"}]
["Rese (Withoutaspoon",{"$f":"ReplaceUsingRegex(A7,\"[^a-zA-Z\\s]\", \"\")","v":"Rese Withoutaspoon"}]
["Blake Dreary…4",{"$f":"ReplaceUsingRegex(A8,\"[^a-zA-Z\\s]\", \"\")","v":"Blake Dreary"}]
["./Adelle Fromthisside",{"$f":"ReplaceUsingRegex(A9,\"[^a-zA-Z\\s]\", \"\")","v":"Adelle Fromthisside"}]
["Pariah Salin",{"$f":"ReplaceUsingRegex(A10,\"[^a-zA-Z\\s]\", \"\")","v":"Pariah Salin"}]
["Jonah Hill##",{"$f":"ReplaceUsingRegex(A11,\"[^a-zA-Z\\s]\", \"\")","v":"Jonah Hill"}]
["Seriously 3Rowling",{"$f":"ReplaceUsingRegex(A12,\"[^a-zA-Z\\s]\", \"\")","v":"Seriously Rowling"}]
["Clie$nt Eastwood",{"$f":"ReplaceUsingRegex(A13,\"[^a-zA-Z\\s]\", \"\")","v":"Client Eastwood"}]
["Kanye East877",{"$f":"ReplaceUsingRegex(A14,\"[^a-zA-Z\\s]\", \"\")","v":"Kanye East"}]
["Victor Iron",{"$f":"ReplaceUsingRegex(A15,\"[^a-zA-Z\\s]\", \"\")","v":"Victor Iron"}]
["Bread Grills000",{"$f":"ReplaceUsingRegex(A16,\"[^a-zA-Z\\s]\", \"\")","v":"Bread Grills"}]
["Jim Doesn'''Tcarrey",{"$f":"ReplaceUsingRegex(A17,\"[^a-zA-Z\\s]\", \"\")","v":"Jim DoesnTcarrey"}]
["Sunny Wilson",{"$f":"ReplaceUsingRegex(A18,\"[^a-zA-Z\\s]\", \"\")","v":"Sunny Wilson"}]
["Elieja! Wouldn'T!",{"$f":"ReplaceUsingRegex(A19,\"[^a-zA-Z\\s]\", \"\")","v":"Elieja WouldnT"}]
["Ellen Verygenerous",{"$f":"ReplaceUsingRegex(A20,\"[^a-zA-Z\\s]\", \"\")","v":"Ellen Verygenerous"}]
["Drake Nolastname",{"$f":"ReplaceUsingRegex(A21,\"[^a-zA-Z\\s]\", \"\")","v":"Drake Nolastname"}]
["**Tom Throne",{"$f":"ReplaceUsingRegex(A22,\"[^a-zA-Z\\s]\", \"\")","v":"Tom Throne"}]
["Daisy Viv*(idy",{"$f":"ReplaceUsingRegex(A23,\"[^a-zA-Z\\s]\", \"\")","v":"Daisy Vividy"}]
["Em.ily Sharp",{"$f":"ReplaceUsingRegex(A24,\"[^a-zA-Z\\s]\", \"\")","v":"Emily Sharp"}]
["Jooolia Stealerts--+",{"$f":"ReplaceUsingRegex(A25,\"[^a-zA-Z\\s]\", \"\")","v":"Jooolia Stealerts"}]
["Mileey Virus",{"$f":"ReplaceUsingRegex(A26,\"[^a-zA-Z\\s]\", \"\")","v":"Mileey Virus"}]
["Nikki Maxaj",{"$f":"ReplaceUsingRegex(A27,\"[^a-zA-Z\\s]\", \"\")","v":"Nikki Maxaj"}]

{"sheet":"Sheet3","index":2,"n_rows":27,"n_cols":2,"rows_kept":27,"cut":false,"hidden":false,"merged":[]}
["Full Name","Last Name"]
["Gary Youngman",{"$f":"ExtractUsingRegex(A2,\"\\w+$\")","v":"Youngman"}]
["Bernie Eves",{"$f":"ExtractUsingRegex(A3,\"\\w+$\")","v":"Eves"}]
["James DidnT",{"$f":"ExtractUsingRegex(A4,\"\\w+$\")","v":"DidnT"}]
["Josan Acuname",{"$f":"ExtractUsingRegex(A5,\"\\w+$\")","v":"Acuname"}]
["Dany Comebackaser",{"$f":"ExtractUsingRegex(A6,\"\\w+$\")","v":"Comebackaser"}]
["Rese Withoutaspoon",{"$f":"ExtractUsingRegex(A7,\"\\w+$\")","v":"Withoutaspoon"}]
["Blake Dreary",{"$f":"ExtractUsingRegex(A8,\"\\w+$\")","v":"Dreary"}]
["Adelle Fromthisside",{"$f":"ExtractUsingRegex(A9,\"\\w+$\")","v":"Fromthisside"}]
["Pariah Salin",{"$f":"ExtractUsingRegex(A10,\"\\w+$\")","v":"Salin"}]
["Jonah Hill",{"$f":"ExtractUsingRegex(A11,\"\\w+$\")","v":"Hill"}]
["Seriously Rowling",{"$f":"ExtractUsingRegex(A12,\"\\w+$\")","v":"Rowling"}]
["Client Eastwood",{"$f":"ExtractUsingRegex(A13,\"\\w+$\")","v":"Eastwood"}]
["Kanye East",{"$f":"ExtractUsingRegex(A14,\"\\w+$\")","v":"East"}]
["Victor Iron",{"$f":"ExtractUsingRegex(A15,\"\\w+$\")","v":"Iron"}]
["Bread Grills",{"$f":"ExtractUsingRegex(A16,\"\\w+$\")","v":"Grills"}]
["Jim DoesnTcarrey",{"$f":"ExtractUsingRegex(A17,\"\\w+$\")","v":"DoesnTcarrey"}]
["Sunny Wilson",{"$f":"ExtractUsingRegex(A18,\"\\w+$\")","v":"Wilson"}]
["Elieja WouldnT",{"$f":"ExtractUsingRegex(A19,\"\\w+$\")","v":"WouldnT"}]
["Ellen Verygenerous",{"$f":"ExtractUsingRegex(A20,\"\\w+$\")","v":"Verygenerous"}]
["Drake Nolastname",{"$f":"ExtractUsingRegex(A21,\"\\w+$\")","v":"Nolastname"}]
["Tom Throne",{"$f":"ExtractUsingRegex(A22,\"\\w+$\")","v":"Throne"}]
["Daisy Vividy",{"$f":"ExtractUsingRegex(A23,\"\\w+$\")","v":"Vividy"}]
["Emily Sharp",{"$f":"ExtractUsingRegex(A24,\"\\w+$\")","v":"Sharp"}]
["Jooolia Stealerts",{"$f":"ExtractUsingRegex(A25,\"\\w+$\")","v":"Stealerts"}]
["Mileey Virus",{"$f":"ExtractUsingRegex(A26,\"\\w+$\")","v":"Virus"}]
["Nikki Maxaj",{"$f":"ExtractUsingRegex(A27,\"\\w+$\")","v":"Maxaj"}]